fUST/lending_fUST_20260111
["ID","MTS","AMOUNT","RATE_DAILY","PERIOD"]
[401244276,1768068638894,-2717.39151148,9.921e-05,2]
[401244277,1768068638903,-2717.39151148,9.928e-05,2]
[401244278,1768068638913,-159518.74,0.0001,2]
[401244279,1768068638922,-2717.39151148,0.0001,2]
[401244280,1768068638931,-150.0,0.00010028,2]
[401244281,1768068638941,-150.0,0.00010028,2]
[401244282,1768068638950,-150.0,0.00010028,2]
[401244283,1768068638960,-500.0,0.00010028,2]
[401244284,1768068638969,-500.0,0.00010028,2]
[401244285,1768068638979,-150.0,0.00010028,2]
[401244286,1768068638988,-150.0,0.00010029,2]
[401244287,1768068638997,-150.0,0.00010029,2]
[401244288,1768068639006,-150.0,0.00010165,2]
[401244289,1768068639016,-150.0,0.00010165,2]
[401244290,1768068639025,-258.0,0.00010165,2]
[401244291,1768068639034,-500.0,0.00010165,2]
[401244292,1768068639043,-500.0,0.00010165,2]
[401244293,1768068639053,-150.0,0.00010165,2]
[401244294,1768068639063,-440.15,0.00010165,2]
[401244295,1768068639073,-150.0,0.00010166,2]
[401244296,1768068639082,-150.0,0.00010166,2]
[401244297,1768068639092,-300.0,0.00010191,2]
[401244298,1768068639102,-300.0,0.00010191,2]
[401244299,1768068639112,-300.0,0.00010191,2]
[401244300,1768068639121,-300.0,0.00010191,2]
[401244301,1768068639131,-300.0,0.00010191,2]
[401244302,1768068639140,-300.0,0.00010191,2]
[401244303,1768068639149,-300.0,0.00010191,2]
[401244304,1768068639159,-300.0,0.00010191,2]
[401244305,1768068639169,-300.0,0.00010191,2]
[401244306,1768068639178,-300.0,0.00010191,2]
[401244307,1768068639188,-300.0,0.00010191,2]
[401244308,1768068639197,-300.0,0.00010191,2]
[401244309,1768068639207,-300.0,0.00010191,2]
[401244310,1768068639219,-300.0,0.00010191,2]
[401244311,1768068639229,-300.0,0.00010191,2]
[401244312,1768068639238,-600.0,0.00010191,2]
[401244313,1768068639249,-500.0,0.00010302,2]
[401244314,1768068639258,-500.0,0.00010302,2]
[401244315,1768068639268,-250.0,0.00010302,2]
[401244316,1768068639277,-250.0,0.00010303,2]
[401244317,1768068639287,-250.0,0.00010303,2]
[401244318,1768068639297,-250.0,0.00010303,2]
[401244319,1768068639306,-319.54093411,0.00010439,2]
[401244320,1768068639316,-500.0,0.00010439,2]
[401244321,1768068639325,-500.0,0.00010439,2]
[401244322,1768068639335,-440.15,0.00010439,2]
[401244323,1768068639345,-300.0,0.00010576,2]
[401244324,1768068639354,-500.0,0.00010576,2]
[401244325,1768068639364,-500.0,0.00010713,2]
[401244326,1768068639373,-440.15,0.00010713,2]
[401244327,1768068639382,-500.0,0.0001085,2]
[401244328,1768068639392,-1135.88957569,0.00010941,2]
[401244329,1768068639401,-124572.635684,0.00010959,2]
[401244330,1768068639411,-1500.0,0.00010959,2]
[401244331,1768068639423,-500.0,0.00010987,2]
[401244332,1768068639432,-440.16267094,0.00010987,2]
[401244333,1768068639443,-515.8,0.0001106,2]
[401244334,1768068639457,-500.0,0.00011124,2]
[401244335,1768068639469,-4458.56617629,0.00011206,2]
[401244336,1768068639481,-720.0,0.0001121,2]
[401244337,1768068639493,-500.0,0.00011261,2]
[401244338,1768068639505,-489.65888898,0.00011398,2]
[401244339,1768068639517,-1500.0,0.00011548,2]
[401244340,1768068639530,-151.0,0.000116,2]
[401244341,1768068639541,-151.0,0.000116,2]
[401244342,1768068639553,-151.0,0.000117,2]
[401244343,1768068639564,-189.08545492,0.00011753,2]
[401244344,1768068639575,-11462.05424511,0.00011801,2]
[401244345,1768068639586,-11877.56,0.00012329,2]
[401244346,1768068639596,-9897.96,0.00012329,2]
[401244347,1768068639607,-8248.3,0.00012329,2]
[401244348,1768068639618,-6873.59,0.00012329,2]
[401244349,1768068639630,-5727.99,0.00012329,2]
[401244350,1768068639642,-4773.32,0.00012329,2]
[401244351,1768068639653,-3977.77,0.00012329,2]
[401244352,1768068639665,-3314.81,0.00012329,2]
[401244353,1768068639676,-2762.34,0.00012329,2]
[401244354,1768068639687,-2301.95,0.00012329,2]
[401244355,1768068639699,-1918.29,0.00012329,2]
[401244356,1768068639710,-1598.58,0.00012329,2]
[401244357,1768068639722,-1332.15,0.00012329,2]
[401244358,1768068639734,-1110.12,0.00012329,2]
[401244359,1768068639745,-925.1,0.00012329,2]
[401244360,1768068639756,-770.92,0.00012329,2]
[401244361,1768068639766,-642.43,0.00012329,2]
[401244362,1768068639776,-535.36,0.00012329,2]
[401244363,1768068639788,-446.13,0.00012329,2]
[401244364,1768068639799,-371.78,0.00012329,2]
[401244365,1768068639810,-309.81,0.00012329,2]
[401244366,1768068639820,-258.18,0.00012329,2]
[401244367,1768068639831,-215.15,0.00012329,2]
[401244368,1768068639841,-179.29,0.00012329,2]
[401244369,1768068639852,-896.48,0.00012329,2]
[401244370,1768068639863,-500.0,0.00012329,2]
[401244371,1768068639875,-500.0,0.00012329,2]
[401244373,1768068639887,-500.0,0.00012329,2]
[401244375,1768068639898,-500.0,0.00012329,2]
[401244377,1768068639909,-500.0,0.00012329,2]
[401244379,1768068639919,-500.0,0.00012329,2]
[401244380,1768068639930,-500.0,0.00012329,2]
[401244382,1768068639940,-500.0,0.00012329,2]
[401244385,1768068639951,-500.0,0.00012329,2]
[401244388,1768068639960,-500.0,0.00012329,2]
[401244392,1768068639970,-500.0,0.00012329,2]
[401244394,1768068639980,-500.0,0.00012329,2]
[401244396,1768068639992,-500.0,0.00012329,2]
[401244398,1768068640002,-500.0,0.00012329,2]
[401244400,1768068640013,-500.0,0.00012329,2]
[401244401,1768068640025,-500.0,0.00012329,2]
[401244403,1768068640036,-500.0,0.00012329,2]
[401244405,1768068640047,-500.0,0.00012329,2]
[401244407,1768068640058,-500.0,0.00012329,2]
[401244409,1768068640069,-500.0,0.00012329,2]
[401244411,1768068640080,-500.0,0.00012329,2]
[401244412,1768068640090,-500.0,0.00012329,2]
[401244415,1768068640101,-500.0,0.00012329,2]
[401244417,1768068640112,-500.0,0.00012329,2]
[401244419,1768068640123,-500.0,0.00012329,2]
[401244421,1768068640134,-500.0,0.00012329,2]
[401244424,1768068640145,-500.0,0.00012329,2]
[401244426,1768068640156,-500.0,0.00012329,2]
[401244428,1768068640166,-500.0,0.00012329,2]
[401244430,1768068640179,-500.0,0.00012329,2]
[401244432,1768068640189,-639.3074948,0.00012329,2]
[401244434,1768068640199,-500.0,0.00012329,2]
[401244437,1768068640209,-500.0,0.00012329,2]
[401244439,1768068640219,-864.0,0.00012331,2]
[401244441,1768068640229,-250.0,0.00012888,2]
[401244443,1768068640238,-7142.16034431,0.00013,2]
[401244445,1768068640248,-1000.0,0.00013564,2]
[401244447,1768068640257,-509.39,0.00013698,2]
[401244449,1768068640267,-509.39,0.00013698,2]
[401244451,1768068640278,-509.39,0.00013698,2]
[401244453,1768068640288,-509.39,0.00013698,2]
[401244456,1768068640299,-509.39,0.00013698,2]
[401244458,1768068640311,-509.39,0.00013698,2]
[401244460,1768068640321,-509.39,0.00013698,2]
[401244462,1768068640334,-509.39,0.00013698,2]
[401244465,1768068640344,-509.39,0.00013698,2]
[401244467,1768068640354,-509.39,0.00013698,2]
[401244469,1768068640363,-509.39,0.00013698,2]
[401244471,1768068640373,-509.39,0.00013698,2]
[401244473,1768068640383,-509.39,0.00013698,2]
[401244475,1768068640393,-509.39,0.00013698,2]
[401244477,1768068640403,-509.39,0.00013698,2]
[401244479,1768068640413,-509.39,0.00013698,2]
[401244481,1768068640424,-509.39,0.00013698,2]
[401244483,1768068640434,-509.39,0.00013698,2]
[401244485,1768068640444,-509.39,0.00013698,2]
[401244487,1768068640454,-509.39,0.00013698,2]
[401244489,1768068640464,-509.39,0.00013698,2]
[401244491,1768068640474,-509.39,0.00013698,2]
[401244494,1768068640484,-509.39,0.00013698,2]
[401244496,1768068640494,-509.41047474,0.00013698,2]
[401244498,1768068640504,-900.827532,0.00013699,2]
[401244500,1768068640514,-500.0,0.00013699,2]
[401244502,1768068640525,-217.92899889,0.00013753,2]
[401244504,1768068640535,-430.85386838,0.00013803,2]
[401244506,1768068640545,-1000.0,0.00014247,2]
[401244508,1768068640555,-1500.0,0.00014287,2]
[401244510,1768068640566,-1500.0,0.00014795,2]
[401244512,1768068640575,-1000.0,0.0001492,2]
[401244514,1768068640585,-244.0,0.0001492,2]
[401244516,1768068640596,-498.9723282,0.00015342,2]
[401244519,1768068640606,-246.77254286,0.00015753,2]
[401244521,1768068640616,-1000.0,0.00016412,2]
[401244523,1768068640626,-492.0,0.00016412,2]
[401244525,1768068640636,-1500.0,0.00017027,2]
[401244527,1768068640649,-1500.0,0.00017616,2]
[401244529,1768068640659,-2078.033271,0.00017616,2]
[401244531,1768068640668,-275.61608683,0.00017753,2]
[401244533,1768068640678,-1000.0,0.00018053,2]
[401244535,1768068640690,-791.0,0.00018053,2]
[401244538,1768068640700,-303.10001603,0.000189,2]
[401244540,1768068640710,-198.62096574,0.00019089,2]
[401244542,1768068640722,-304.4596308,0.00019753,2]
[401244544,1768068640732,-1000.0,0.00019859,2]
[401244546,1768068640742,-1000.0,0.00019859,2]
[401244548,1768068640752,-201.74,0.000199,2]
[401244550,1768068640762,-6834.71,0.000199,2]
[401244552,1768068640772,-333.30317477,0.00021753,2]
[401244554,1768068640782,-1000.0,0.00021845,10]
[401244557,1768068640792,-1000.0,0.00021845,10]
[401244559,1768068640801,-579.0,0.00021845,10]
[401244561,1768068640811,-362.14671874,0.00023753,2]
[401244563,1768068640821,-1000.0,0.00024029,10]
[401244565,1768068640832,-1000.0,0.00024029,10]
[401244567,1768068640842,-1000.0,0.00024029,10]
[401244569,1768068640852,-150.0,0.00024658,2]
[401244571,1768068640862,-150.0,0.00024795,2]
[401244573,1768068640872,-218.0,0.00024877,14]
[401244576,1768068640882,-500.0,0.00024927,2]
[401244578,1768068640892,-150.0,0.00024932,2]
[401244580,1768068640902,-150.0,0.00025069,2]
[401244582,1768068640912,-150.1,0.00025202,2]
[401244584,1768068640923,-150.0,0.00025206,2]
[401244585,1768068640933,-250.0,0.00025343,2]
[401244586,1768068640943,-390.99026271,0.00025753,2]
[401244587,1768068640952,-1000.0,0.00026432,30]
[401244588,1768068641101,-1000.0,0.00026432,30]
[401244589,1768068641113,-1000.0,0.00026432,30]
[401244590,1768068641121,-715.0,0.00026432,30]
[401244591,1768068641130,-419.83380668,0.00027753,2]
[401244592,1768068641139,-169.0,0.00028164,28]
[401244593,1768068641148,-231.35629748,0.00029033,5]
[401244594,1768068641156,-1000.0,0.00029075,30]
[401244595,1768068641165,-1000.0,0.00029075,30]
[401244597,1768068641175,-1000.0,0.00029075,30]
[401244599,1768068641184,-9999.3338094,0.00029472,2]
[401244601,1768068641193,-448.67735065,0.00029753,2]
[401244603,1768068641202,-585.492,0.00030336,25]
[401244605,1768068641212,-918.54832174,0.00030336,23]
[401244607,1768068641222,-169.04140704,0.00030336,25]
[401244609,1768068641231,-155.0,0.00031452,46]
[401244611,1768068641242,-477.52089462,0.00031753,2]
[401244613,1768068641251,-170.12005958,0.00031779,24]
[401244615,1768068641260,-516.35781364,0.00031854,7]
[401244617,1768068641270,-999.0,0.00032876,120]
[401244619,1768068641279,-150.0,0.00032877,5]
[401244621,1768068641288,-258.38,0.00032963,2]
[401244623,1768068641298,-170.12005958,0.00033222,26]
[401244625,1768068641308,-210.0,0.00033699,5]
[401244627,1768068641317,-506.36443859,0.00033753,120]
[401244629,1768068641327,-352.89,0.00033809,10]
[401244631,1768068641336,-999.0,0.00033972,120]
[401244633,1768068641346,-6834.71,0.000341,14]
[401244635,1768068641355,-151.67,0.00034256,60]
[401244637,1768068641364,-151.67,0.00034356,60]
[401244639,1768068641373,-324.5,0.00034388,30]
[401244641,1768068641383,-705.0,0.00034388,30]
[401244643,1768068641393,-151.67,0.00034456,60]
[401244645,1768068641402,-270.0,0.00034521,5]
[401244647,1768068641410,-151.67,0.00034556,60]
[401244649,1768068641420,-5058.79910613,0.00034618,47]
[401244651,1768068641429,-151.67,0.00034656,60]
[401244653,1768068641439,-170.12005958,0.00034665,28]
[401244655,1768068641448,-151.67,0.00034756,60]
[401244657,1768068641457,-151.67,0.00034856,60]
[401244658,1768068641466,-151.67,0.00034956,60]
[401244660,1768068641477,-151.67,0.00035056,60]
[401244662,1768068641486,-999.0,0.00035068,120]
[401244664,1768068641495,-151.67,0.00035156,60]
[401244666,1768068641504,-280.0,0.000352,120]
[401244668,1768068641513,-280.0,0.000352,60]
[401244670,1768068641523,-151.67,0.00035256,60]
[401244672,1768068641532,-330.0,0.00035342,5]
[401244674,1768068641541,-151.77,0.00035356,60]
[401244676,1768068641551,-500.0,0.00035616,30]
[401244678,1768068641561,-334.34878739,0.00035616,7]
[401244680,1768068641570,-156.012,0.00035674,2]
[401244682,1768068641581,-535.20798256,0.00035753,120]
[401244684,1768068641590,-156.012,0.00035774,2]
[401244686,1768068641600,-156.012,0.00035874,2]
[401244688,1768068641610,-327905.18107711,0.00035937,4]
[401244690,1768068641619,-156.012,0.00035974,2]
[401244692,1768068641628,-313.88682,0.00036,120]
[401244694,1768068641638,-156.012,0.00036074,2]
[401244696,1768068641650,-377.1655679,0.00036082,30]
[401244698,1768068641659,-377.1655679,0.00036082,30]
[401244700,1768068641669,-376.6134449,0.00036082,30]
[401244702,1768068641677,-170.12005958,0.00036108,29]
[401244704,1768068641687,-731.96785671,0.00036164,120]
[401244706,1768068641698,-500.0,0.00036164,30]
[401244708,1768068641707,-180.020001,0.00036164,5]
[401244710,1768068641718,-161.0,0.00036384,88]
[401244712,1768068641728,-453.20238296,0.00036612,2]
[401244714,1768068641736,-453.20238294,0.0003665,2]
[401244716,1768068641745,-453.20238294,0.00036687,2]
[401244718,1768068641754,-500.0,0.00036712,2]
[401244720,1768068641763,-500.0,0.00036712,2]
[401244722,1768068641773,-500.0,0.00036712,2]
[401244724,1768068641782,-500.0,0.00036712,2]
[401244727,1768068641793,-500.0,0.00036712,2]
[401244729,1768068641804,-500.0,0.00036712,2]
[401244731,1768068641815,-500.0,0.00036712,2]
[401244733,1768068641824,-500.0,0.00036712,2]
[401244734,1768068641836,-500.0,0.00036712,2]
[401244736,1768068641845,-500.0,0.00036712,2]
[401244738,1768068641854,-500.0,0.00036712,2]
[401244740,1768068641863,-500.0,0.00036712,2]
[401244742,1768068641872,-500.0,0.00036712,2]
[401244744,1768068641881,-500.0,0.00036712,2]
[401244746,1768068641891,-500.0,0.00036712,2]
[401244749,1768068641900,-500.0,0.00036712,2]
[401244751,1768068641909,-502.32745149,0.00036712,2]
[401244753,1768068641919,-500.0,0.00036712,2]
[401244755,1768068641928,-151.0,0.00036712,28]
[401244757,1768068641937,-151.0,0.00036712,28]
[401244759,1768068641946,-315.18853,0.00036712,31]
[401244761,1768068641955,-315.18853,0.00036712,31]
[401244763,1768068641965,-315.18853,0.00036712,31]
[401244765,1768068641974,-315.18853,0.00036712,31]
[401244767,1768068641983,-2479.36,0.00036712,30]
[401244769,1768068641993,-2479.36,0.00036712,30]
[401244771,1768068642002,-2479.36,0.00036712,30]
[401244773,1768068642012,-2479.36,0.00036712,30]
[401244775,1768068642022,-2479.36,0.00036712,30]
[401244777,1768068642031,-2479.36,0.00036712,30]
[401244779,1768068642040,-2479.36,0.00036712,30]
[401244781,1768068642048,-2479.36,0.00036712,30]
[401244782,1768068642059,-2479.36,0.00036712,30]
[401244784,1768068642068,-2479.36,0.00036712,30]
[401244787,1768068642077,-2479.36,0.00036712,30]
[401244789,1768068642086,-2479.36,0.00036712,30]
[401244790,1768068642096,-2479.36,0.00036712,30]
[401244793,1768068642106,-2479.36,0.00036712,30]
[401244795,1768068642116,-2479.36,0.00036712,30]
[401244797,1768068642126,-2479.36,0.00036712,30]
[401244799,1768068642136,-2479.36,0.00036712,30]
[401244800,1768068642147,-2479.36,0.00036712,30]
[401244803,1768068642157,-2479.36,0.00036712,30]
[401244805,1768068642166,-2479.36,0.00036712,30]
[401244807,1768068642176,-2479.36,0.00036712,30]
[401244809,1768068642187,-2479.36,0.00036712,30]
[401244810,1768068642196,-2479.36,0.00036712,30]
[401244812,1768068642205,-2479.42,0.00036712,30]
[401244815,1768068642214,-16189.62,0.00036712,30]
[401244817,1768068642223,-16189.62,0.00036712,30]
[401244819,1768068642233,-16189.62,0.00036712,30]
[401244821,1768068642241,-16189.62,0.00036712,30]
[401244822,1768068642250,-16189.62,0.00036712,30]
[401244825,1768068642259,-16189.62,0.00036712,30]
[401244827,1768068642270,-16189.62,0.00036712,30]
[401244828,1768068642279,-16189.62,0.00036712,30]
[401244830,1768068642288,-16189.62,0.00036712,30]
[401244833,1768068642298,-16189.62,0.00036712,30]
[401244835,1768068642307,-16189.62,0.00036712,30]
[401244837,1768068642316,-16189.62,0.00036712,30]
[401244838,1768068642324,-16189.62,0.00036712,30]
[401244840,1768068642334,-16189.62,0.00036712,30]
[401244843,1768068642345,-16189.62,0.00036712,30]
[401244845,1768068642355,-16189.62,0.00036712,30]
[401244847,1768068642364,-16189.62,0.00036712,30]
[401244849,1768068642374,-16189.62,0.00036712,30]
[401244851,1768068642384,-16189.62,0.00036712,30]
[401244853,1768068642398,-16189.62,0.00036712,30]
[401244855,1768068642407,-16189.62,0.00036712,30]
[401244857,1768068642416,-16189.62,0.00036712,30]
[401244859,1768068642426,-16189.62,0.00036712,30]
[401244861,1768068642435,-16189.70100427,0.00036712,30]
[401244863,1768068642445,-4887.27,0.00036712,30]
[401244865,1768068642454,-4887.27,0.00036712,30]
[401244867,1768068642464,-4887.27,0.00036712,30]
[401244869,1768068642473,-4887.27,0.00036712,30]
[401244871,1768068642482,-4887.27,0.00036712,30]
[401244873,1768068642492,-4887.27,0.00036712,30]
[401244875,1768068642502,-4887.27,0.00036712,30]
[401244877,1768068642511,-4887.27,0.00036712,30]
[401244879,1768068642520,-4887.27,0.00036712,30]
[401244881,1768068642530,-4887.27,0.00036712,30]
[401244883,1768068642540,-4887.27,0.00036712,30]
[401244885,1768068642550,-4887.27,0.00036712,30]
[401244887,1768068642559,-4887.27,0.00036712,30]
[401244889,1768068642568,-4887.27,0.00036712,30]
[401244891,1768068642578,-4887.27,0.00036712,30]
[401244893,1768068642587,-4887.27,0.00036712,30]
[401244895,1768068642597,-4887.27,0.00036712,30]
[401244897,1768068642608,-4887.27,0.00036712,30]
[401244899,1768068642617,-4887.27,0.00036712,30]
[401244901,1768068642628,-4887.27,0.00036712,30]
[401244903,1768068642638,-4887.27,0.00036712,30]
[401244905,1768068642650,-4887.27,0.00036712,30]
[401244907,1768068642660,-4887.27,0.00036712,30]
[401244909,1768068642669,-4887.3,0.00036712,30]
[401244912,1768068642680,-2192.87,0.00036712,30]
[401244914,1768068642691,-2192.87,0.00036712,30]
[401244916,1768068642701,-2192.87,0.00036712,30]
[401244918,1768068642710,-2192.87,0.00036712,30]
[401244920,1768068642721,-2192.87,0.00036712,30]
[401244922,1768068642730,-2192.87,0.00036712,30]
[401244924,1768068642739,-2192.87,0.00036712,30]
[401244926,1768068642749,-2192.87,0.00036712,30]
[401244928,1768068642758,-2192.87,0.00036712,30]
[401244930,1768068642767,-2192.87,0.00036712,30]
[401244932,1768068642776,-2192.87,0.00036712,30]
[401244934,1768068642785,-2192.87,0.00036712,30]
[401244936,1768068642795,-2192.87,0.00036712,30]
[401244938,1768068642805,-2192.87,0.00036712,30]
[401244940,1768068642814,-2192.87,0.00036712,30]
[401244942,1768068642823,-2195.79,0.00036712,30]
[401244944,1768068642832,-2192.87,0.00036712,30]
[401244946,1768068642841,-2195.79,0.00036712,30]
[401244948,1768068642851,-2192.87,0.00036712,30]
[401244950,1768068642860,-2195.79,0.00036712,30]
[401244952,1768068642870,-2192.87,0.00036712,30]
[401244954,1768068642880,-2192.87,0.00036712,30]
[401244956,1768068642889,-2195.79,0.00036712,30]
[401244958,1768068642898,-2192.87,0.00036712,30]
[401244960,1768068642907,-2195.79,0.00036712,30]
[401244962,1768068642917,-2192.87,0.00036712,30]
[401244965,1768068642926,-2192.87,0.00036712,30]
[401244967,1768068642936,-2195.79,0.00036712,30]
[401244969,1768068642947,-2192.87,0.00036712,30]
[401244971,1768068642957,-2195.79,0.00036712,30]
[401244973,1768068642966,-2195.79,0.00036712,30]
[401244975,1768068642975,-2195.79,0.00036712,30]
[401244977,1768068642985,-2195.79,0.00036712,30]
[401244978,1768068642995,-2195.79,0.00036712,30]
[401244979,1768068643005,-2192.89,0.00036712,30]
[401244980,1768068643015,-2195.79,0.00036712,30]
[401244982,1768068643025,-2195.79,0.00036712,30]
[401244983,1768068643035,-2195.79,0.00036712,30]
[401244984,1768068643045,-2195.79,0.00036712,30]
[401244986,1768068643056,-2195.79,0.00036712,30]
[401244987,1768068643065,-2195.79,0.00036712,30]
[401244989,1768068643075,-2195.79,0.00036712,30]
[401244991,1768068643084,-2195.79,0.00036712,30]
[401244992,1768068643093,-2195.79,0.00036712,30]
[401244993,1768068643103,-2195.79,0.00036712,30]
[401244994,1768068643112,-2195.79,0.00036712,30]
[401244995,1768068643121,-2195.79,0.00036712,30]
[401244996,1768068643130,-2195.88,0.00036712,30]
[401244997,1768068643139,-241.15003758,0.00036712,120]
[401244998,1768068643149,-26257.46,0.00036712,30]
[401244999,1768068643158,-26257.46,0.00036712,30]
[401245000,1768068643167,-26257.46,0.00036712,30]
[401245001,1768068643177,-26257.46,0.00036712,30]
[401245002,1768068643186,-26257.46,0.00036712,30]
[401245003,1768068643195,-26257.46,0.00036712,30]
[401245004,1768068643204,-26257.46,0.00036712,30]
[401245005,1768068643214,-26257.46,0.00036712,30]
[401245006,1768068643223,-26257.46,0.00036712,30]
[401245007,1768068643234,-26257.46,0.00036712,30]
[401245008,1768068643243,-26257.46,0.00036712,30]
[401245009,1768068643253,-26257.46,0.00036712,30]
[401245010,1768068643262,-26257.46,0.00036712,30]
[401245011,1768068643271,-26257.46,0.00036712,30]
[401245012,1768068643281,-26257.46,0.00036712,30]
[401245013,1768068643290,-26257.46,0.00036712,30]
[401245014,1768068643299,-26257.46,0.00036712,30]
[401245015,1768068643308,-26257.46,0.00036712,30]
[401245016,1768068643317,-26257.46,0.00036712,30]
[401245017,1768068643326,-26257.46,0.00036712,30]
[401245019,1768068643335,-26257.46,0.00036712,30]
[401245021,1768068643345,-26257.46,0.00036712,30]
[401245023,1768068643354,-26257.46,0.00036712,30]
[401245026,1768068643363,-26257.54452659,0.00036712,30]
[401245029,1768068643373,-5048.48,0.00036712,30]
[401245031,1768068643383,-5048.48,0.00036712,30]
[401245032,1768068643392,-5048.48,0.00036712,30]
[401245033,1768068643401,-5048.48,0.00036712,30]
[401245034,1768068643412,-5048.48,0.00036712,30]
[401245035,1768068643422,-5048.48,0.00036712,30]
[401245036,1768068643431,-5048.48,0.00036712,30]
[401245037,1768068643440,-5048.48,0.00036712,30]
[401245038,1768068643449,-5048.48,0.00036712,30]
[401245039,1768068643459,-5048.48,0.00036712,30]
[401245040,1768068643469,-5048.48,0.00036712,30]
[401245041,1768068643478,-5048.48,0.00036712,30]
[401245042,1768068643488,-5048.48,0.00036712,30]
[401245043,1768068643498,-5048.48,0.00036712,30]
[401245044,1768068643508,-5048.48,0.00036712,30]
[401245045,1768068643518,-5048.48,0.00036712,30]
[401245046,1768068643528,-5048.48,0.00036712,30]
[401245047,1768068643537,-5048.48,0.00036712,30]
[401245048,1768068643547,-5048.48,0.00036712,30]
[401245049,1768068643556,-5048.48,0.00036712,30]
[401245050,1768068643566,-5048.48,0.00036712,30]
[401245051,1768068643576,-5048.48,0.00036712,30]
[401245052,1768068643585,-5048.48,0.00036712,30]
[401245053,1768068643595,-5048.65,0.00036712,30]
[401245054,1768068643604,-500.0,0.00036712,30]
[401245055,1768068643614,-500.0,0.00036712,30]
[401245056,1768068643623,-500.0,0.00036712,30]
[401245057,1768068643633,-500.0,0.00036712,30]
[401245058,1768068643647,-500.17912256,0.00036712,30]
[401245059,1768068643656,-532.55,0.00036712,30]
[401245060,1768068643665,-453.20238294,0.00036725,2]
[401245061,1768068643676,-453.20238294,0.00036763,2]
[401245062,1768068643687,-800.0,0.00036856,7]
[401245064,1768068643696,-1112.0,0.00036858,2]
[401245065,1768068643705,-1112.0,0.00036859,3]
[401245066,1768068643716,-1112.0,0.0003686,4]
[401245067,1768068643726,-1112.0,0.00036861,5]
[401245068,1768068643735,-1112.0,0.00036862,6]
[401245069,1768068643744,-1112.0,0.00036863,7]
[401245070,1768068643753,-1112.0,0.00036864,8]
[401245071,1768068643762,-1911.9889186,0.00036938,2]
[401245072,1768068643770,-5792.9267374,0.00036938,2]
[401245073,1768068643778,-11421.7728585,0.00036938,2]
[401245074,1768068643787,-181.8425414,0.00036938,2]
[401245075,1768068643797,-151.0,0.00036938,31]
[401245076,1768068643805,-151.0,0.00036938,31]
[401245077,1768068643816,-160.29273,0.00036938,31]
[401245078,1768068643826,-151.0,0.00036938,31]
[401245079,1768068643835,-151.0,0.00036938,31]
[401245080,1768068643845,-151.0,0.00036938,31]
[401245081,1768068643854,-171.590858,0.00036938,31]
[401245082,1768068643864,-151.0,0.00036938,31]
[401245083,1768068643873,-240.800018,0.00036938,31]
[401245084,1768068643883,-151.0,0.00036938,31]
[401245085,1768068643893,-151.0,0.00036938,31]
[401245086,1768068643902,-226.952409,0.00036938,31]
[401245087,1768068643911,-151.0,0.00036995,31]
[401245088,1768068643919,-162.204706,0.00036995,31]
[401245089,1768068643928,-163.471192,0.00036995,31]
[401245090,1768068643937,-151.0,0.00036995,31]
[401245091,1768068643946,-157.421281,0.00036995,31]
[401245092,1768068643956,-151.0,0.00036995,31]